Cogmind - Beta 11 X10 @@@ ROGUE MODE // 2022.03.13 @ 08:46:42 Player: maxwell Result: Self-destructed Performance ------------- Evolutions (4) 2000 Regions Visited (12) 2400 Robots Destroyed (142) 710 Value Destroyed (7013) 7013 Prototype IDs (28) 560 Alien Tech Used (0) 0 Bonus (3536) 3536 TOTAL SCORE: 16219 Bonus ------- High Alert Combat Kills 463 Follower Combat Kills 878 Entered Garrisons 600 Used RIF Installer 1500 Aligned with FarCom 300 Friendly Fire -205 Cogmind --------- Core Integrity 323/850 Matter 288/300 Energy 650/650 System Corruption 6% Temperature Cool (87) Movement Core (1550) Ox30 Location -6/Factory Parts ------- > --- POWER (1) -------- Angular Momentum Engine > --- PROPULSION (2) --- (None) > --- UTILITY (10) ----- Large Storage Unit Energy Well Targeting Computer Heavy Reactive Plating Graphene Brace Relay Coupler [NC] (15) Relay Coupler [Swarmer] (10) Relay Coupler [Heavy] (3) > --- WEAPON (2) ------- YOLO Cannon > --- INVENTORY (15) --- Matter Compressor (165) Relay Coupler [NC] (33) Relay Coupler [Swarmer] (38) Relay Coupler [Brawler] (29) Relay Coupler [Duelist] (31) Relay Coupler [Duelist] (22) Relay Coupler [Sentry] (15) Relay Coupler [Sentry] (21) Relay Coupler [Demolisher] (18) Relay Coupler [Hunter] (10) Long-range Tractor Beam Gauss Rifle Coil Gun Magnetic Acceleration Cannon Rocket Launcher Peak State ------------ > --- POWER ------------ Angular Momentum Engine > --- PROPULSION ------- Carbon-fiber Leg Carbon-fiber Leg > --- UTILITY ---------- Improved Cooling System Large Storage Unit Energy Well Targeting Computer Heavy Reactive Plating Graphene Brace Relay Coupler [NC] Relay Coupler [Swarmer] Relay Coupler [Heavy] > --- WEAPON ----------- YOLO Cannon > --- INVENTORY -------- High-capacity Matter Pod Relay Coupler [NC] Relay Coupler [Swarmer] Relay Coupler [Brawler] Relay Coupler [Duelist] Relay Coupler [Duelist] Relay Coupler [Sentry] Relay Coupler [Sentry] Relay Coupler [Demolisher] Relay Coupler [Hunter] Long-range Tractor Beam Gauss Rifle Coil Gun Magnetic Acceleration Cannon Rocket Launcher [Rating: 74] Favorites ----------- Power Improved Deuterium Engine Engine Improved Deuterium Engine Power Core Enhanced Nuclear Core Reactor Light Antimatter Reactor Propulsion Aluminum Leg Treads Light Treads Leg Aluminum Leg Wheel Wheel Utility Humpback Device Shield Generator Storage Humpback Processor Advanced Targeting Computer Hackware Relay Coupler [Grunt] Protection Light Armor Plating Weapon Gauss Rifle Energy Gun EM Pulse Gun Energy Cannon YOLO Cannon Ballistic Gun Gauss Rifle Ballistic Cannon Flak Cannon Launcher Rocket Launcher Special Weapon Remote Datajack Impact Weapon Power Maul Build | -11 -10 -10 -10 -9 -8 -7 -7 -7 -7 -6 -6 -6 ------- Run | Scr Mat Min Exi Min Mat Fac Gar Fac Gar Fac Gar Fac Slots Evolved 8 | . . . . . 4 2 . . . 2 . . Power . | . . . . . . . . . . . . . Propulsion . | . . . . . . . . . . . . . Utility 8 | . . . . . 4 2 . . . 2 . . Weapon . | . . . . . . . . . . . . . Parts Attached 166 | 6 12 3 5 . 11 20 26 13 31 12 24 3 Power 10 | 1 1 . . . 1 1 2 . 2 . 1 1 Engine 5 | 1 1 . . . 1 . 1 . . . . 1 Core 4 | . . . . . . 1 1 . 2 . . . Reactor 1 | . . . . . . . . . . . 1 . Propulsion 21 | 2 . 2 . . . 3 6 2 2 1 3 . Treads 3 | 2 . . . . . . 1 . . . . . Leg 7 | . . . . . . . 5 . . . 2 . Wheel 11 | . . 2 . . . 3 . 2 2 1 1 . Hover . | . . . . . . . . . . . . . Flight . | . . . . . . . . . . . . . Utility 66 | 1 3 . 1 . 6 5 12 6 13 6 11 2 Device 14 | . . . . . 2 2 2 . 2 1 4 1 Storage 8 | 1 1 . 1 . . . 1 . 1 . 3 . Processor 9 | . 1 . . . 3 2 . 1 . 1 1 . Hackware 24 | . . . . . . 1 6 5 8 4 . . Protection 11 | . 1 . . . 1 . 3 . 2 . 3 1 Artifact . | . . . . . . . . . . . . . Weapon 69 | 2 8 1 4 . 4 11 6 5 14 5 9 . Energy Gun 4 | 1 1 . . . 1 1 . . . . . . Energy Cannon 7 | . . . 2 . 1 . . 1 . . 3 . Ballistic Gun 27 | 1 4 . 1 . . 5 2 2 5 2 5 . Ballistic Cannon 2 | . . . . . 1 . 1 . . . . . Launcher 17 | . 3 1 1 . 1 3 2 . 5 . 1 . Special Weapon 9 | . . . . . . 1 1 2 3 2 . . Impact Weapon 3 | . . . . . . 1 . . 1 1 . . Slashing Weapon . | . . . . . . . . . . . . . Piercing Weapon . | . . . . . . . . . . . . . Special Melee Weapon . | . . . . . . . . . . . . . Unidentified Prototypes 3 | . . . . . 1 1 . . 1 . . . Parts Lost 50 | . 3 4 . . 1 6 6 1 8 2 16 3 Power 6 | . 1 . . . 1 . 1 . 1 . 2 . Propulsion 16 | . . 2 . . . 5 2 . 2 1 2 2 Utility 15 | . . . . . . 1 3 1 2 . 7 1 Weapon 13 | . 2 2 . . . . . . 3 1 5 . Highest Loss Streak 8 | . 2 1 . . 1 3 3 1 3 2 8 1 To Critical Strikes . | . . . . . . . . . . . . . Average Slot Usage (%) 82 | . 98 80 63 85 81 86 83 85 78 79 77 80 Engine 4 | . 13 14 14 14 7 2 4 7 . . . 5 Core 2 | . . . . . . 4 2 . 6 6 2 . Treads 2 | . 28 14 . . . . 1 . . . . . Leg 5 | . . . . . . . 10 3 . . 4 8 Wheel 6 | . . 10 28 28 18 14 . 11 13 12 6 . Device 3 | . . . . . 9 7 1 . . . 7 12 Storage 8 | . 14 14 13 14 9 7 7 7 6 6 11 13 Processor 11 | . 9 14 4 . 9 22 18 15 . . 3 6 Hackware 16 | . . . . . . 3 16 23 26 32 24 20 Protection 4 | . 3 . . . 8 6 2 . 7 6 4 5 Energy Cannon 1 | . . . . . 4 . . 5 . . 3 6 Ballistic Gun 6 | . 22 . 1 14 . 8 5 5 8 6 5 . Ballistic Cannon 2 | . . . . . 5 1 4 . . . . . Launcher 1 | . 4 12 1 14 3 2 . . 1 3 . . Special Weapon 1 | . . . . . . . 3 3 3 1 . . Naked Turns . | . . . . . . . . . . . . . Heaviest Build 258 | 14 30 27 221 208 218 221 223 220 254 258 258 94 Greatest Support 40 | 40 40 40 20 20 20 20 30 30 28 24 30 30 Greatest Overweight (x) 69 | . . 8 11 10 10 21 69 13 13 10 14 31 Average Overweight (x) 6 | . . . 5 10 10 10 10 8 8 10 3 4 Largest Inventory Capacity 35 | 8 15 15 35 35 35 35 35 35 35 35 35 15 Average Capacity 30 | 6 14 15 28 35 35 35 35 35 34 35 18 15 Most Carried 35 | 4 15 15 23 19 30 35 35 35 35 35 33 15 Average Carried 27 | 2 9 14 17 19 27 32 33 34 30 34 16 14 Final Capacity 35 | 8 15 15 35 35 35 35 35 35 35 35 15 15 Final Carried 35 | 4 15 14 19 19 30 33 35 34 35 33 15 15 Class Distribution -------------------- 45% | Bothacker-Mutant 31% | Hauler-Mutant 10% | Mutant 10% | Scavenger-Mutant Dominant Class ---------------- Mutant | -10/Materials Mutant | -10/Mines Hauler-Mutant | -10/Exiles Hauler-Mutant | -9/Mines Hauler-Mutant | -8/Materials Hauler-Mutant | -7/Factory Bothacker-Mutant | -7/Garrison Bothacker-Mutant | -7/Factory Bothacker-Mutant | -7/Garrison Bothacker-Mutant | -6/Factory Scavenger-Mutant | -6/Garrison Scavenger-Mutant | -6/Factory Resources | -11 -10 -10 -10 -9 -8 -7 -7 -7 -7 -6 -6 -6 ----------- Run | Scr Mat Min Exi Min Mat Fac Gar Fac Gar Fac Gar Fac Matter Collected 6498 | 201 522 169 420 10 286 378 1069 326 1979 78 805 255 Remotely . | . . . . . . . . . . . . . Salvage Created 4653 | . 614 99 . . 267 498 372 168 722 59 569 1285 Parts 240 | . 44 12 . . 19 43 17 13 19 4 25 44 Haulers Intercepted 4 | . 2 . . . 1 . . . . . . 1 Recyclers Shooed 1 | . . . . . . 1 . . . . . . Parts Field Recycled . | . . . . . . . . . . . . . Retrieved Matter . | . . . . . . . . . . . . . Parts Self-Destructed . | . . . . . . . . . . . . . Prevented . | . . . . . . . . . . . . . Kills | -11 -10 -10 -10 -9 -8 -7 -7 -7 -7 -6 -6 -6 ------- Run | Scr Mat Min Exi Min Mat Fac Gar Fac Gar Fac Gar Fac Combat Hostiles Destroyed 103 | . 15 9 . . 6 9 15 1 11 1 13 23 Guns 27 | . 8 . . . . 5 5 1 3 1 4 . Cannons 18 | . . . . . 1 . 3 . . . 3 11 AOE 51 | . 7 9 . . 5 4 7 . 8 . 5 6 Classes Destroyed 16 | . 7 . . . 3 1 2 . . . 1 2 Worker 12 | . 2 1 . . 1 3 . 1 . . . 4 Builder 8 | . 1 . . . 2 2 . 2 . . . 1 Tunneler 3 | . 1 . . . . 1 . . . . . 1 Hauler 4 | . 2 . . . 1 . . . . . . 1 Recycler 3 | . . . . . 1 . . 1 . . . 1 Watcher 8 | . 2 . . . 1 4 . . . . . 1 Swarmer 22 | . 3 5 . . . . 4 . 7 . 3 . Grunt 49 | . 12 4 . . 4 4 7 . 4 . 5 9 Brawler 3 | . . . . . . . 2 . . . . 1 Duelist 3 | . . . . . 1 . 1 . . . 1 . Sentry 3 | . . . . . . . 1 . . 1 . 1 Specialist 6 | . . . . . . . . . . . . 6 Hunter 9 | . . . . . 1 1 . . 1 . 3 3 Programmer 7 | . . . . . . 4 . 1 . . . 2 Heavy 1 | . . . . . . . . . . . . 1 Behemoth 1 | . . . . . . . . . . . 1 . Best Kill Streak 8 | . 4 5 . . 8 7 4 2 3 1 3 6 Combat Bots Only 5 | . 3 5 . . 5 5 4 1 3 1 3 4 Max Kills in Single Turn 3 | . 2 2 . . 2 2 2 2 2 1 2 3 Gunslinging . | . . . . . . . . . . . . . Exploded 2 | . 2 2 . . 2 2 2 . 2 . 2 1 Melee . | . . . . . . . . . . . . . Uniques/NPCs Destroyed . | . . . . . . . . . . . . . Combat | -11 -10 -10 -10 -9 -8 -7 -7 -7 -7 -6 -6 -6 -------- Run | Scr Mat Min Exi Min Mat Fac Gar Fac Gar Fac Gar Fac Damage Taken 9114 | . 570 310 . . 506 629 918 436 1335 535 2612 1263 Core 1295 | . 64 93 . . 74 123 134 84 196 30 334 163 Absorbed by Shields 619 | . . . . . 39 205 90 . . . 285 . Regen/Repaired (Parts) 399 | . . . . . . . . . . . . 399 Core Remaining (%) 61 | 100 . . . 37 86 . . . 23 . . . Volleys Fired 566 | . 64 15 . . 33 32 70 35 179 16 82 40 Largest 2 | . 2 1 . . 2 2 2 2 2 2 2 1 Hottest 120 | . 60 33 . . 112 56 72 96 60 60 120 100 Shots Fired 828 | . 117 15 . . 40 52 98 47 259 22 138 40 Gun 573 | . 107 . . . 6 39 41 21 229 12 118 . Cannon 113 | . . . . . 20 . 31 6 . . 16 40 Launcher 78 | . 10 15 . . 14 13 11 . 11 . 4 . Special 64 | . . . . . . . 15 20 19 10 . . Kinetic 610 | . 105 . . . 14 39 72 21 229 12 118 . Thermal 68 | . . . . . 6 . . 6 . . 16 40 Explosive 78 | . 10 15 . . 14 13 11 . 11 . 4 . Electromagnetic 8 | . 2 . . . 6 . . . . . . . Robot Hit Streak 36 | . 9 5 . . 8 13 20 24 36 10 10 9 Robot Miss Streak 5 | . 5 1 . . 3 4 5 3 2 1 5 2 Penetration Max 1 | . . . . . . 1 . 1 . 1 1 . Secondary Targets . | . . . . . . . . . . . . . Shots Hit Robots 552 | . 67 8 . . 22 33 64 28 206 18 79 27 Core Hits 326 | . 37 15 . . 29 33 51 8 85 2 35 31 Critical Kills 10 | . . . . . . 2 . 1 . . 1 6 Critical Parts Destroyed 6 | . 1 . . . . 1 . . 2 2 . . Critical Strikes 17 | . 1 . . . . 3 . 1 2 2 2 6 Meltdown 7 | . . . . . . . . . . . 1 6 Destroy 10 | . 1 . . . . 3 . 1 2 2 1 . Melee Attacks 2 | . . . . . . 1 . . . 1 . . Impact 2 | . . . . . . 1 . . . 1 . . Slashing . | . . . . . . . . . . . . . Piercing . | . . . . . . . . . . . . . Sneak Attacks . | . . . . . . . . . . . . . Combat Hostiles . | . . . . . . . . . . . . . Follow-up Attacks . | . . . . . . . . . . . . . Damage Inflicted 18968 | . 1517 646 . . 1239 1645 1908 330 3140 240 2571 5732 Guns 5888 | . 848 . . . 89 609 424 268 1970 234 1446 . Cannons 4201 | . . . . . 180 . 487 62 . . 473 2999 Explosions 8857 | . 669 638 . . 970 1028 997 . 1170 . 652 2733 Melee . | . . . . . . . . . . . . . Ramming 22 | . . 8 . . . 8 . . . 6 . . Kinetic 6373 | . 818 . . . 117 609 911 268 1970 234 1446 . Thermal 6400 | . . . . . 63 . . 62 . . 543 5732 Explosive 6054 | . 669 638 . . 970 1028 997 . 1170 . 582 . Electromagnetic 119 | . 30 . . . 89 . . . . . . . Impact . | . . . . . . . . . . . . . Slashing . | . . . . . . . . . . . . . Piercing . | . . . . . . . . . . . . . Highest Corruption 13 | . . . . . . 7 4 1 13 . . 6 Average Corruption 2 | . . . . . . 1 2 1 3 . . 2 Corruption Purged 17 | . . . . . . 3 4 . 10 . . . Corruption Blocked . | . . . . . . . . . . . . . Effects 114 | . . . . . . 14 2 . 71 . . 27 Message Errors 33 | . . . . . . 4 . . 20 . . 9 Matter Fused 33 | . . . . . . 2 1 . 21 . . 9 Heat Flow Errors 13 | . . . . . . 4 . . 6 . . 3 Energy Discharges 8 | . . . . . . 1 . . 5 . . 2 Parts Rejected 1 | . . . . . . . . . 1 . . . Data Loss (minor) 11 | . . . . . . 1 1 . 7 . . 2 Data Loss (major) 5 | . . . . . . 1 . . 3 . . 1 Misfires 5 | . . . . . . 1 . . 4 . . . Alerts 4 | . . . . . . . . . 3 . . 1 Weapon Failures 1 | . . . . . . . . . 1 . . . Overload Shots . | . . . . . . . . . . . . . Overflow Damage 1046 | . 58 38 . . 15 96 . . 16 . 131 692 Projectiles 741 | . . . . . . . . . . . 131 610 Explosions 305 | . 58 38 . . 15 96 . . 16 . . 82 Melee . | . . . . . . . . . . . . . Knockbacks 17 | . . . . . 1 . 16 . . . . . Impact . | . . . . . . . . . . . . . Kinetic 17 | . . . . . 1 . 16 . . . . . Secondary . | . . . . . . . . . . . . . Self-Inflicted Damage 961 | . 135 125 . . 147 173 37 . 121 3 . 220 Shots 28 | . 4 4 . . 6 4 2 . 4 . . 4 Rammed 5 | . . 2 . . . 1 . . . 2 . . Targets Rammed 5 | . . 2 . . . 1 . . . 2 . . Kicked . | . . . . . . . . . . . . . Crushed . | . . . . . . . . . . . . . Highest Temperature 260 | . 12 24 . . 126 256 15 30 260 30 260 238 Average Temperature 68 | . 6 11 . . 24 118 5 12 93 11 79 71 Received Heat Transfer 1962 | . 210 81 . . 117 124 252 69 279 60 632 138 Effects 2 | . . . . . . . . . . . 2 . Interference 2 | . . . . . . . . . . . 2 . Siege Activations . | . . . . . . . . . . . . . Robots Corrupted . | . . . . . . . . . . . . . Combat Hostiles . | . . . . . . . . . . . . . Parts Fried . | . . . . . . . . . . . . . Impact Corruptions . | . . . . . . . . . . . . . Robots Melted 7 | . . . . . . . . . . . 1 6 Combat Hostiles 7 | . . . . . . . . . . . 1 6 Parts Melted 16 | . . . . . . . . 1 . . 4 11 Heat Transferred 6342 | . . . . . 111 . . 111 . . 640 5480 Parts Sabotaged . | . . . . . . . . . . . . . Parts Stolen . | . . . . . . . . . . . . . Parts Stripped . | . . . . . . . . . . . . . Power Chain Reactions . | . . . . . . . . . . . . . Missiles Intercepted . | . . . . . . . . . . . . . Alert | -11 -10 -10 -10 -9 -8 -7 -7 -7 -7 -6 -6 -6 ------- Run | Scr Mat Min Exi Min Mat Fac Gar Fac Gar Fac Gar Fac Peak Influence 1262 | . 270 272 . . 191 304 1262 695 515 288 299 725 Initial 651 | . . 72 . . . 16 98 651 63 270 28 156 Average 556 | . 116 202 . . 27 50 1007 422 189 155 221 554 Maximum Alert Level 4 | . 1 1 . . . 1 4 2 2 1 1 3 Low Security (%) 34 | 100 89 47 . 100 100 94 3 32 72 51 22 3 Level 1 12 | . 10 52 . . . 5 2 . 15 48 77 2 Level 2 15 | . . . . . . . 10 67 12 . . 88 Level 3 11 | . . . . . . . 25 . . . . 5 Level 4 25 | . . . . . . . 58 . . . . . Level 5 . | . . . . . . . . . . . . . High Security . | . . . . . . . . . . . . . Max Security . | . . . . . . . . . . . . . Squads Dispatched 37 | . 5 . . . 2 8 . 3 . 9 . 10 Investigation 6 | . 3 . . . 1 1 . . . 1 . . Extermination 6 | . . . . . . 3 . 1 . . . 2 Reinforcement 19 | . 2 . . . 1 2 . 1 . 5 . 8 Assault . | . . . . . . . . . . . . . Garrison 6 | . . . . . . 2 . 1 . 3 . . Intercept . | . . . . . . . . . . . . . Construction Impeded 1 | . . . . . . 1 . . . . . . Haulers Reinforced 2 | . . . . . . . . . . . . 2 Active Scanning Responses . | . . . . . . . . . . . . . Cargo Convoy Interrupts 1 | . . . . . . . . . . 1 . . Alert ID Control Effect 15 | . . . . . . . . . 9 6 . . Stealth | -11 -10 -10 -10 -9 -8 -7 -7 -7 -7 -6 -6 -6 --------- Run | Scr Mat Min Exi Min Mat Fac Gar Fac Gar Fac Gar Fac Distress Signals 10 | . 2 . . . 2 1 . 1 . . . 4 Communications Jammed . | . . . . . . . . . . . . . Distress Signals . | . . . . . . . . . . . . . Times Spotted 209 | . 29 9 . . 18 24 25 14 31 18 13 28 Peak Tracking Total 6 | . 4 5 . . 5 6 4 2 6 6 5 4 Tactical Retreats 6 | . . . . . . . 1 . 2 1 . 2 Traps | -11 -10 -10 -10 -9 -8 -7 -7 -7 -7 -6 -6 -6 ------- Run | Scr Mat Min Exi Min Mat Fac Gar Fac Gar Fac Gar Fac Traps Triggered 18 | . 1 . . . . . 7 . 6 . 4 . Indirectly . | . . . . . . . . . . . . . Trap Hack Attempts . | . . . . . . . . . . . . . Triggered . | . . . . . . . . . . . . . Disarmed . | . . . . . . . . . . . . . Reprogrammed . | . . . . . . . . . . . . . Reused . | . . . . . . . . . . . . . Traps Extracted . | . . . . . . . . . . . . . Installed . | . . . . . . . . . . . . . Triggered 1 | . . . . . . . . . . 1 . . Machines | -11 -10 -10 -10 -9 -8 -7 -7 -7 -7 -6 -6 -6 ---------- Run | Scr Mat Min Exi Min Mat Fac Gar Fac Gar Fac Gar Fac Machines Disabled 40 | . 4 8 . . 1 3 4 2 4 1 1 12 Max in Single Turn 5 | . 3 2 . . 1 2 1 1 1 1 1 5 Garrison Relay 9 | . . . . . . . 4 . 4 . 1 . Machines Sabotaged . | . . . . . . . . . . . . . Garrisons Compromised 1 | . . . . . . . . . . 1 . . Overloaded Fab Kills . | . . . . . . . . . . . . . Hacking | -11 -10 -10 -10 -9 -8 -7 -7 -7 -7 -6 -6 -6 --------- Run | Scr Mat Min Exi Min Mat Fac Gar Fac Gar Fac Gar Fac Machines Accessed 27 | . 8 . 2 . 1 7 . 2 . 3 . 4 Terminals 14 | . 6 . . . 1 3 . 1 . 1 . 2 Fabricators 3 | . . . . . . 2 . . . 1 . . Repair Stations 1 | . . . . . . . . . . . . 1 Recycling Units 3 | . 2 . . . . 1 . . . . . . Scanalyzers . | . . . . . . . . . . . . . Garrison Access 4 | . . . . . . 1 . 1 . 1 . 1 Total Hacks 69 | . 27 . 2 . 3 18 . 4 . 6 . 9 Successful 34 | . 13 . 2 . 2 8 . 2 . 3 . 4 Failed 34 | . 13 . . . 1 10 . 2 . 3 . 5 Catastrophic 2 | . . . . . . 1 . . . . . 1 Database Lockouts 1 | . 1 . . . . . . . . . . . Manual 47 | . 15 . 1 . 3 14 . 3 . 5 . 6 Terminals 41 | . 20 . . . 3 9 . 1 . 2 . 6 Fabricators 7 | . . . . . . 5 . . . 2 . . Repair Stations 2 | . . . . . . . . . . . . 2 Recycling Units 9 | . 7 . . . . 2 . . . . . . Scanalyzers . | . . . . . . . . . . . . . Garrison Access 8 | . . . . . . 2 . 3 . 2 . 1 Terminal Hacks 14 | . 7 . 2 . 2 3 . . . . . . Record 1 | . . . 1 . . . . . . . . . Robot Analysis 3 | . 2 . . . 1 . . . . . . . Prototype ID Bank 1 | . 1 . . . . . . . . . . . Level Access Points 1 | . 1 . . . . . . . . . . . Branch Access Points 1 | . . . . . 1 . . . . . . . Terminal Index 2 | . 1 . . . . 1 . . . . . . Unreport Threat 1 | . . . . . . 1 . . . . . . Locate Traps 1 | . . . . . . 1 . . . . . . Dispatch Records 1 | . 1 . . . . . . . . . . . Registered Prototypes 1 | . 1 . . . . . . . . . . . EX-Prototype ID Bank 1 | . . . 1 . . . . . . . . . Fabricator Hacks . | . . . . . . . . . . . . . Repair Station Hacks 2 | . . . . . . . . . . . . 2 Scan Component 1 | . . . . . . . . . . . . 1 Repair 1 | . . . . . . . . . . . . 1 Recycling Unit Hacks 3 | . 2 . . . . 1 . . . . . . Retrieve Components 3 | . 2 . . . . 1 . . . . . . Scanalyzer . | . . . . . . . . . . . . . Garrison Access Hacks 4 | . . . . . . 1 . 1 . 1 . 1 Unlock Access 4 | . . . . . . 1 . 1 . 1 . 1 Unauthorized Hacks 11 | . 4 . . . . 3 . 1 . 2 . 1 Terminals 6 | . 2 . . . . 2 . 1 . . . 1 Botnet 4 | . 1 . . . . 1 . 1 . . . 1 Operators 2 | . 1 . . . . 1 . . . . . . Fabricators 1 | . . . . . . . . . . 1 . . Fabnet 1 | . . . . . . . . . . 1 . . Repair Stations . | . . . . . . . . . . . . . Recycling Units 3 | . 2 . . . . 1 . . . . . . Tunnel 3 | . 2 . . . . 1 . . . . . . Scanalyzers . | . . . . . . . . . . . . . Garrison Access 1 | . . . . . . . . . . 1 . . Eject 1 | . . . . . . . . . . 1 . . Data Cores Recovered . | . . . . . . . . . . . . . Used . | . . . . . . . . . . . . . Hacking Detections 21 | . 7 . . . 1 6 . 2 . 2 . 3 Full Trace Events 1 | . . . . . 1 . . . . . . . Feedback Events . | . . . . . . . . . . . . . Feedback Blocked . | . . . . . . . . . . . . . Robot Schematics Acquired . | . . . . . . . . . . . . . Robots Built . | . . . . . . . . . . . . . Authchips . | . . . . . . . . . . . . . Time . | . . . . . . . . . . . . . Total Robot Build Rating . | . . . . . . . . . . . . . Part Schematics Acquired . | . . . . . . . . . . . . . Parts Built . | . . . . . . . . . . . . . Authchips . | . . . . . . . . . . . . . Time . | . . . . . . . . . . . . . Total Part Build Rating . | . . . . . . . . . . . . . Parts Repaired 1 | . . . . . . . . . . . . 1 Time 50 | . . . . . . . . . . . . 50 Parts Recycled . | . . . . . . . . . . . . . Recycled Matter . | . . . . . . . . . . . . . Retrieved Matter . | . . . . . . . . . . . . . Retrieved Components 10 | . . . . . . 10 . . . . . . Parts Scanalyzed . | . . . . . . . . . . . . . Part Schematics Acquired . | . . . . . . . . . . . . . Parts Damaged . | . . . . . . . . . . . . . Bothacking | -11 -10 -10 -10 -9 -8 -7 -7 -7 -7 -6 -6 -6 ------------ Run | Scr Mat Min Exi Min Mat Fac Gar Fac Gar Fac Gar Fac Used RIF Installer 3 | . . . . . . . 1 . 1 . 1 . Alert ID Control 1 | . . . . . . . . . 1 . . . Structural Interface 1 | . . . . . . . . . . . 1 . Robots Hacked 41 | . . . . . . . 9 10 15 7 . . Non-combat 4 | . . . . . . . . 3 . 1 . . Combat 37 | . . . . . . . 9 7 15 6 . . Robot Hacks Applied 48 | . . . . . . . 10 15 15 8 . . parse_system 1 | . . . . . . . . . . 1 . . find_recycling 1 | . . . . . . . . 1 . . . . check_alert 1 | . . . . . . . . 1 . . . . purge_threat 4 | . . . . . . . . 4 . . . . block_reporting 1 | . . . . . . . . 1 . . . . map_route 2 | . . . . . . . . 1 . 1 . . find_garrison 1 | . . . . . . . . 1 . . . . disable_weapons 1 | . . . . . . . . . . 1 . . reboot_system 1 | . . . . . . . . . . 1 . . overwrite_iff 12 | . . . . . . . 4 2 5 1 . . formatsys_high 23 | . . . . . . . 6 4 10 3 . . Relay Couplers Released 42 | . . . . . . . 17 4 15 3 3 . Ejected 3 | . . . . . . . . . . 3 . . Machine Destruction 35 | . . . . . . . 17 . 15 . 3 . Programmers 4 | . . . . . . . . 4 . . . . Attached 23 | . . . . . . . 6 5 8 4 . . Fabnet Peak Effective % . | . . . . . . . . . . . . . Robots Rewired . | . . . . . . . . . . . . . Allies Hacked 1 | . . . . . . 1 . . . . . . Hacks Repelled . | . . . . . . . . . . . . . Allies | -11 -10 -10 -10 -9 -8 -7 -7 -7 -7 -6 -6 -6 -------- Run | Scr Mat Min Exi Min Mat Fac Gar Fac Gar Fac Gar Fac Total Allies 37 | . . . . 3 . . 9 6 15 4 . . Largest Group 9 | . . . . 3 3 3 6 8 8 9 . . Highest-Rated Group 224 | . . . . 40 40 40 138 186 192 224 . . Highest-Rated Ally 41 | . . . . 16 16 16 32 32 32 41 . . Total Orders 48 | . . . . . 4 2 11 13 11 7 . . STAY 28 | . . . . . 3 1 6 7 8 3 . . FOLLOW 20 | . . . . . 1 1 5 6 3 4 . . Ally Attacks 155 | . . . . . 7 2 14 39 46 47 . . Total Damage 3827 | . . . . . 86 22 370 763 805 1781 . . Kills 33 | . . . . . 1 . 3 12 11 6 . . Allies Corrupted 3 | . . . . . . 2 . 1 . . . . Allies Melted . | . . . . . . . . . . . . . Intel | -11 -10 -10 -10 -9 -8 -7 -7 -7 -7 -6 -6 -6 ------- Run | Scr Mat Min Exi Min Mat Fac Gar Fac Gar Fac Gar Fac Robot Analysis Total 3 | . 2 . . . 1 . . . . . . . Derelict Logs Recovered 1 | . . 1 . . . . . . . . . . Drone Launches . | . . . . . . . . . . . . . Drone Recoveries . | . . . . . . . . . . . . . Exploration | -11 -10 -10 -10 -9 -8 -7 -7 -7 -7 -6 -6 -6 ------------- Run | Scr Mat Min Exi Min Mat Fac Gar Fac Gar Fac Gar Fac Turns Passed 25567 | 113 1318 729 723 142 1356 1431 10654 1063 3634 828 1708 1868 Spaces Moved 6992 | 59 680 509 437 59 541 496 1146 377 1330 309 700 349 Core 36 | 1 . 9 . . . . 2 . . . 14 10 Treads 1214 | 58 680 222 . . . . 254 . . . . . Legs 1503 | . . . . . . . 890 21 . . 253 339 Wheels 4239 | . . 278 437 59 541 496 . 356 1330 309 433 . Hover . | . . . . . . . . . . . . . Flight . | . . . . . . . . . . . . . Fastest Speed 50 | 50 160 95 80 230 230 230 610 210 100 240 105 260 Average Speed 328 | 158 160 134 159 230 230 234 902 244 219 240 196 440 Slowest Speed 3500 | 160 160 450 245 230 230 395 3500 610 295 240 750 1600 Overloaded Moves . | . . . . . . . . . . . . . Propulsion Burnouts . | . . . . . . . . . . . . . Robots Hopped . | . . . . . . . . . . . . . Cave-ins Triggered 1 | . . . . . . . . . 1 . . . Exploration Rate (%) 45 | 5 97 99 72 13 29 17 84 14 82 8 62 15 Regions Visited 12 Branch Regions 3 Pre-discovered Areas 6 | . 2 2 1 . . 1 . . . . . . Known Exits Taken 3 | . . . . . . 1 . 1 . 1 . . Unknown Exits Taken 6 | 1 1 1 1 1 1 . . . . . . . Scrap Searched 1 | . . 1 . . . . . . . . . . Spaces Dug 76 | . 12 22 . . . 8 . . 10 1 . 23 Terrain Destroyed 943 | . 105 121 . . 76 91 66 . 59 3 112 310 Melee 2 | . . . . . . 1 . . . 1 . . Projectile 31 | . . . . . 5 . 1 . 4 2 9 10 AOE 909 | . 105 121 . . 71 90 65 . 55 . 102 300 Terrain Rammed . | . . . . . . . . . . . . . Walls Destroyed . | . . . . . . . . . . . . . Machines Disabled . | . . . . . . . . . . . . . Actions | -11 -10 -10 -10 -9 -8 -7 -7 -7 -7 -6 -6 -6 --------- Run | Scr Mat Min Exi Min Mat Fac Gar Fac Gar Fac Gar Fac Total 8707 | 76 791 538 467 66 610 708 1373 480 1787 371 881 559 Wait 690 | 8 17 9 2 8 12 136 82 45 156 24 27 164 Move 6979 | 58 679 508 436 58 540 496 1144 376 1328 309 698 349 Hop . | . . . . . . . . . . . . . Pick Up 152 | 4 15 1 17 . 11 12 20 6 41 5 19 1 Fast Attach 60 | 6 3 . 1 . 7 5 6 3 13 2 11 3 Attach 46 | . 3 2 4 . 1 6 10 4 5 2 9 . Detach 12 | . 1 . 3 . 2 2 2 . 1 1 . . Swap 60 | . 6 1 . . 3 9 10 6 13 8 4 . Drop 52 | . 3 . 4 . 1 8 11 5 11 2 5 2 Fire 566 | . 64 15 . . 33 32 70 35 179 16 82 40 Melee 2 | . . . . . . 1 . . . 1 . . Ram 2 | . . . . . . 1 . . . 1 . . Kick . | . . . . . . . . . . . . . Crush 2 | . . 2 . . . . . . . . . . Escape Stasis 84 | . . . . . . . 18 . 40 . 26 . Rewire . | . . . . . . . . . . . . . Trap . | . . . . . . . . . . . . . Miscellaneous . | . . . . . . . . . . . . . Route ------- -11/Scrapyard -10/Materials (discovered 5 exits: *Mat x3 / [*Min x2]) -10/Mines (discovered 3 exits: *Mat x2 / *Exi) -10/Exiles (discovered 2 exits: [*Min x2]) -9/Mines -8/Materials -7/Factory -7/Garrison (discovered 3 exits: *Fac x3) -7/Factory (discovered 5 exits: *Fac x2 / [*Low x2] / Gar) -7/Garrison (discovered 3 exits: *Fac x3) -6/Factory (discovered 2 exits: [Low] / Gar) -6/Garrison (discovered 2 exits: *Fac x2) -6/Factory (discovered 2 exits: [*Fac] / Gar) History --------- Turn | Location | Event 30 | -11/Scrapyard | Discovered new exit (range 15) 114 | -11/Scrapyard | Entered Materials 124 | -10/Materials | Discovered new exit (range 11) 302 | -10/Materials | Build established: Mutant 620 | -10/Materials | Discovered new exit (range 17) 857 | -10/Materials | Discovered new exit (range 7) 872 | -10/Materials | Central database locked down 948 | -10/Materials | Identified exit to Materials 1300 | -10/Materials | Discovered new exit (range 12) 1432 | -10/Materials | Entered Mines 1719 | -10/Mines | Deemed a non-threat by the Exiles lab entrance 1908 | -10/Mines | Discovered exit to Materials (range 12) 1921 | -10/Mines | Received a Rocket Launcher from a helpful Derelict 1983 | -10/Mines | Learned location of Zion (-7) 1997 | -10/Mines | Discovered exit to Materials (range 5) 2016 | -10/Mines | Learned location of Storage (-7) 2072 | -10/Mines | Core integrity fell below 50% 2157 | -10/Mines | Discovered new exit (range 5) 2161 | -10/Mines | Entered Exiles 2174 | -10/Exiles | Discovered new exit (range 15) 2185 | -10/Exiles | Met 8R-AWN 2200 | -10/Exiles | Met EX-HEX 2226 | -10/Exiles | Met EX-BIN 2288 | -10/Exiles | Met EX-DEC 2575 | -10/Exiles | Aligned with FarCom system 2577 | -10/Exiles | Given EX-Vault access code 2639 | -10/Exiles | Opened EX-Vault 2653 | -10/Exiles | Found YOLO Cannon 2662 | -10/Exiles | Found Firepult 2686 | -10/Exiles | Build established: Hauler-Mutant 2712 | -10/Exiles | Warned to stay clear of 0b10 Research branches 2863 | -10/Exiles | Discovered new exit (range 11) 2884 | -10/Exiles | Left Exiles lab with YOLO Cannon 2884 | -10/Exiles | Entered Mines 2885 | -9/Mines | Assembled infested the area 2893 | -9/Mines | Met a Derelict bent on vengeance 2944 | -9/Mines | Assisted by bots powering up and referring to "LRC-V3" 3015 | -9/Mines | Discovered new exit (range 4) 3026 | -9/Mines | Entered Materials 3026 | -8/Materials | Accompanied by 3 allies 3026 | -8/Materials | Evolved 4 slots: Utility x4 3716 | -8/Materials | Discovered new exit (range 15) 4382 | -8/Materials | Entered Factory 4382 | -7/Factory | Accompanied by 3 allies 4382 | -7/Factory | Evolved 2 slots: Utility x2 5672 | -7/Factory | Garrison activated, responded to threat 5813 | -7/Factory | Identified exit to Garrison 5813 | -7/Factory | Entered Garrison 5842 | -7/Garrison | Lost 3 parts (3n) 6288 | -7/Garrison | Triggered checkpoint 6888 | -7/Garrison | Discovered new exit (range 12) 7396 | -7/Garrison | Triggered checkpoint 7687 | -7/Garrison | Discovered new exit (range 11) 8308 | -7/Garrison | Triggered checkpoint 8363 | -7/Garrison | Lost 3 parts (1p1n1u) 8745 | -7/Garrison | Discovered new exit (range 12) 8876 | -7/Garrison | Installed Relay Interface Framework 9116 | -7/Garrison | Triggered checkpoint 9240 | -7/Garrison | Garrison Relay disabled 10050 | -7/Garrison | Triggered checkpoint 10207 | -7/Garrison | Garrison Relay disabled 10512 | -7/Garrison | Build established: Bothacker-Mutant 11264 | -7/Garrison | Triggered checkpoint 11360 | -7/Garrison | Garrison Relay disabled 13154 | -7/Garrison | Triggered checkpoint 13316 | -7/Garrison | Garrison Relay disabled 14537 | -7/Garrison | Triggered checkpoint 15519 | -7/Garrison | Triggered checkpoint 16467 | -7/Garrison | Entered Factory 16467 | -7/Factory | Accompanied by 6 allies 16983 | -7/Factory | Discovered new exit (range 19) 17059 | -7/Factory | Discovered new exit (range 64) 17059 | -7/Factory | Discovered new exit (range 102) 17424 | -7/Factory | Discovered new exit (range 19) 17453 | -7/Factory | Garrison activated, responded to threat 17489 | -7/Factory | Identified exit to Garrison 17530 | -7/Factory | Entered Garrison 17530 | -7/Garrison | Accompanied by 1 ally 17541 | -7/Garrison | Expanded RIF knowledge: Alert ID Control 17650 | -7/Garrison | Triggered checkpoint 17661 | -7/Garrison | Triggered checkpoint 17806 | -7/Garrison | Core integrity fell below 50% 17855 | -7/Garrison | Crushed by falling debris 17855 | -7/Garrison | System corruption reached 10% 17886 | -7/Garrison | Lost 3 parts (1u2w) 18124 | -7/Garrison | Triggered checkpoint 18612 | -7/Garrison | Triggered checkpoint 18653 | -7/Garrison | Garrison Relay disabled 19299 | -7/Garrison | Discovered new exit (range 11) 19478 | -7/Garrison | Found Hvy. Reactive Plating 19831 | -7/Garrison | Found Hvy. Reactive Plating 19834 | -7/Garrison | Found Hvy. Reactive Plating 19923 | -7/Garrison | Found Hvy. Reactive Plating 20121 | -7/Garrison | Discovered new exit (range 8) 20155 | -7/Garrison | Triggered checkpoint 20206 | -7/Garrison | Garrison Relay disabled 20439 | -7/Garrison | Discovered new exit (range 8) 20469 | -7/Garrison | Triggered checkpoint 20503 | -7/Garrison | Garrison Relay disabled 20619 | -7/Garrison | Triggered checkpoint 20703 | -7/Garrison | Triggered checkpoint 20744 | -7/Garrison | Garrison Relay disabled 21164 | -7/Garrison | Entered Factory 21164 | -6/Factory | Accompanied by 8 allies 21164 | -6/Factory | Evolved 2 slots: Utility x2 21466 | -6/Factory | Discovered new exit (range 36) 21918 | -6/Factory | Cargo convoy interrupted 21943 | -6/Factory | Garrison activated, responded to threat 21964 | -6/Factory | Identified exit to Garrison 21992 | -6/Factory | Entered Garrison 22188 | -6/Garrison | Triggered checkpoint 22193 | -6/Garrison | Spotted B-75 Beast 22234 | -6/Garrison | Build established: Hauler-Mutant 22295 | -6/Garrison | Destroyed B-75 Beast 22546 | -6/Garrison | Discovered new exit (range 12) 22605 | -6/Garrison | Triggered checkpoint 22681 | -6/Garrison | Lost 4 parts (1p3u) 22710 | -6/Garrison | Discovered new exit (range 8) 22726 | -6/Garrison | Expanded RIF knowledge: Structural Interface 22918 | -6/Garrison | Triggered checkpoint 22987 | -6/Garrison | Lost 8 parts (1p2n1u4w) 23145 | -6/Garrison | Garrison Relay disabled 23361 | -6/Garrison | Build established: Scavenger-Mutant 23700 | -6/Garrison | Entered Factory 24137 | -6/Factory | Repaired Hvy. Reactive Plating 24402 | -6/Factory | Core integrity fell below 50% 24441 | -6/Factory | Discovered new exit (range 12) 24877 | -6/Factory | Identified exit to Garrison 25568 | -6/Factory | Self-destructed Last Messages --------------- 25468_ U-05 Engineer builds a Wall. 25469_ U-05 Engineer lays Concrete. 25470_ Imp. Cooling System destroyed. 25471_ G-50 Soldier destroyed. 25472_ U-05 Engineer lays Concrete. 25473_ U-05 Engineer builds a Wall. 25474_ PFY&Y AKV GPEKSE%#FI 25477_ U-05 Engineer lays Concrete. 25478_ U-05 Engineer builds a Wall. 25480_ U-05 Engineer lays Concrete. 25497_ 3MLG2MXQQXLER5HN KBYEAROJBP7TZ 25497_ U-05 Engineer lays Concrete. 25516_ U-05 Engineer builds a Wall. 25520_ 7C<&TF%IWDMGFR &G6KM&DCC 25521_ U-05 Engineer builds a Wall. 25528_ U-05 Engineer lays Concrete. 25529_ U-05 Engineer builds a Wall. 25533_ U-05 Engineer lays Concrete. 25542_ System corrupted: Heat flow error (+257). 25564_ System corrupted: Heat flow error (+163). Map ----- +----------------------------------------------------+ | """??????????????# "#?# # #### | | ""???????????????# ! ##?# # #??? | | ????????######## = % #??# # #??? | | ????????# #/#"##########??# ######??? | | +########## % ????? ???????? | | ????? ???????? | | ???? ??????? | | < ???? ??????? | | ??? ?????? | | %[ % ??? ?????? | | /#"" [ ?? ????? | | " ####+########?######### ????? | | # ##??? ? ????T ??????? ???? | | ####### #???? ? ? ???? #?????? ???? | | !#?????# #????????[ ??? #?????? ??? | | #?????# #????????[ ??? #??????? ??? | | #?????# #????????| ??? #??????? ????? | | #?????# #??????? #????????????? | | #?????# #???# """" """" #????????????? | | +#####?????# #???# """" """" #????????????? | | ???????????# #???# """" """" #????????????? | | ???????????# #####] """" """" #????????????? | | ???????????# #? " #????????????? | | ???????????# #???? [ #????????????? | | ???????????# ######################## | | ???###+##### % @ % | | ?? ################## % | | ?????# #??? ! " ##?? | | ????## #?! " # ##?????T"" ### | | ????#" = "" ###????????" ? #?? | | ????#" """" # ! S" ?????????????????? | | ????#" "%%" # """ ?????????????????? | | ??### %%%% # ! """ ?????????????????? | | ??# " %% "" # """ ?????????????????? | | ?# " """ + #????gb??????????? | | R" # """??????????????????? | | # """ # """""??????????????????? | | [ #? """????????????????????? | | % #? ???????????????????? | | ! #####+##+############??????????????????? | | #?????????????????????????? | | """" #?????????????????????????? | | # #"T ] #?????????????????????????? | | ? #""" #?????????????????????????? | | ??####?# #?????????????????????????? | | ???????# """"""""" #?????????????????????????? | | ???????# #?????????????????????????? | | ???????# """"""""" #?????????????????????????? | | ???????# #?????????????????????????? | | ???????# #?????????????????????????? | +----------------------------------------------------+ Best States ------------- Heat Dissipation 83 Energy Generation 21 Energy Capacity 650 Matter Stores 300 Matter Capacity 500 Sight Range 22 Terrain Scan Range 20 Terrain Scan Density 10 Armor Coverage 750 Resistance: KI 40 Utility Shielding 33 Evasion (%) 44 Targeting Accuracy 8 Target Analysis 6 Recoil Reduction 2 Defensive Hacking 10 Relay Coupler Types 6 Relay Coupler Value 65 Item Schematics ----------------- None Robot Schematics ------------------ None Fabricated ------------ Nothing Alien Tech Used ----------------- None Achievements -------------- None Challenges ------------ None Game ------ Seed EtherialSalvageBarrier Manual? 0 Play Time 01:14:03 Cumulative 199.5 hours Start 2022.03.11 @ 07:53:28 End 2022.03.13 @ 08:46:42 Sessions 5 Manual Loads 0 Difficulty Rogue Special Mode None Game No. 306 Rogue 284 Adventurer 4 Explorer 18 Win Type - Total 10 Types 8/0/0/2/0/0/0/0/0 Lore% 68 Gallery% 85 Achievement% 70 Wizard Run 0 Options --------- ASCII 0 Keyboard 1 Movement Numpad Keybinds 0 Fullscreen 1 Font 18/SmallcapsGlow Map View 76x50 Tactical HUD 1 Map Filters NONE Filters NONE Steam 1 RUN: 9bdc20d3-07f8-4b6e-9973-4797dadbc2f5